bitfinex/quotes_SOLUSD_20220109
["timestamp","ask_amount","ask_price","bid_price","bid_amount"]
[1641756777003,47.2999,145.48,145.29,15.57267081]
[1641756777403,47.2999,145.48,145.29,15.25982586]
[1641756777604,47.2999,145.48,145.29,13.479]
[1641756777806,47.2999,145.48,145.29,13.219]
[1641756778004,10.3204,145.4,145.31,10.3196]
[1641756778203,10.3204,145.4,145.31,47.26701057]
[1641756778401,10.3204,145.4,145.31,18.5696]
[1641756778602,10.3204,145.4,145.31,8.25]
[1641756781607,10.3204,145.4,145.31,8.27792489]
[1641756781806,10.3204,145.4,145.31,8.3338675]
[1641756782006,10.3204,145.4,145.31,8.35768706]
[1641756782208,10.3204,145.4,145.31,8.38558238]
[1641756782405,10.3204,145.4,145.31,8.40853719]
[1641756782607,10.3204,145.4,145.31,8.43169697]
[1641756782907,10.3204,145.4,145.31,0.30377981]
[1641756783111,100.5602,145.53,145.32,8.25]
[1641756783310,175.2021,145.53,145.36,0.30606476]
[1641756783510,98.4845,145.53,145.37,8.25]
[1641756783709,98.4845,145.53,145.36,0.31101586]
[1641756783913,98.4845,145.53,145.36,0.56101586]
[1641756784111,34.391,145.48,145.36,0.25]
[1641756784312,34.391,145.48,145.35,8.25]
[1641756784711,34.391,145.48,145.36,0.25]
[1641756784913,10.3171,145.46,145.36,0.25]
[1641756785115,10.3171,145.46,145.37,1.789]
[1641756785512,10.3171,145.46,145.38,0.25]
[1641756786012,10.3171,145.46,145.39,0.07]
[1641756786614,34.3869,145.51,145.39,0.07]
[1641756786815,34.3805,145.53,145.39,0.07]
[1641756787415,175.12681716,145.54,145.39,18.8944]
[1641756787716,3.58384745,145.52,145.39,34.85158597]
[1641756787915,122.5078,145.57,145.41,0.07]
[1641756788115,122.5078,145.57,145.42,8.25]
[1641756788316,48.2674,145.57,145.42,8.25]
[1641756788522,48.2674,145.57,145.43,0.25]
[1641756788719,10.3125,145.52,145.43,8.25]
[1641756788919,48.2674,145.57,145.44,0.07]
[1641756789128,48.2674,145.57,145.41,8.25]
[1641756789319,3.0,145.56,145.41,8.25]
[1641756789519,3.0,145.56,145.42,3.0]
[1641756790122,10.3144,145.5,145.41,8.25]
[1641756790344,10.3144,145.5,145.38,8.25]
[1641756790547,10.3144,145.5,145.35,33.3765]
[1641756790745,10.3144,145.5,145.35,9.968]
[1641756791247,10.3144,145.5,145.35,8.25]
[1641756791848,9.8144,145.5,145.37,31.71366829]
[1641756792049,9.8144,145.5,145.37,39.96366829]
[1641756792448,9.8144,145.5,145.37,50.27896829]
[1641756793051,9.8144,145.5,145.38,0.05107993]
[1641756793552,9.1144,145.5,145.38,0.10216811]
[1641756794150,9.1144,145.5,145.38,0.10190535]
[1641756794552,9.1144,145.5,145.38,0.10170313]
[1641756794755,17.3644,145.5,145.38,0.10170313]
[1641756794953,10.3178,145.44,145.38,0.10170313]
[1641756795156,10.3178,145.44,145.38,0.12471455]
[1641756795355,10.3178,145.44,145.38,0.15278306]
[1641756795552,10.3178,145.44,145.38,0.10198515]
[1641756795755,10.3178,145.44,145.38,0.13002889]
[1641756796156,10.3178,145.44,145.38,0.12997386]
[1641756796561,10.3178,145.44,145.38,0.10190535]
[1641756796756,10.3178,145.44,145.38,0.12962994]
[1641756796954,10.3178,145.44,145.38,0.10170313]
[1641756797154,10.3178,145.44,145.38,0.12471455]
[1641756797356,10.3178,145.44,145.38,0.12982667]
[1641756797759,3.0,145.43,145.38,0.13002889]
[1641756797963,10.3221,145.41,145.38,0.13002889]
[1641756798163,3.03219997,145.4,145.38,0.13002889]
[1641756798364,3.03219997,145.4,145.38,0.10190535]
[1641756798765,3.03219997,145.4,145.38,0.10178842]
[1641756798962,3.03219997,145.4,145.38,0.07386161]
[1641756799363,3.03219997,145.4,145.38,0.10198515]
[1641756799765,3.03219997,145.4,145.38,0.12514652]
[1641756799964,3.03219997,145.4,145.38,0.15787041]
[1641756800164,13.35249997,145.4,145.38,0.15787041]
[1641756800369,13.35249997,145.4,145.38,0.1299546]
[1641756800567,13.35249997,145.4,145.38,0.10188609]
[1641756800769,13.35249997,145.4,145.38,0.12493053]
[1641756800968,13.35249997,145.4,145.38,0.07384235]
[1641756801168,13.35249997,145.4,145.38,0.07386161]
[1641756801369,13.35249997,145.4,145.38,0.07391664]
[1641756801601,13.35249997,145.4,145.38,0.10198515]
[1641756801968,13.35249997,145.4,145.38,0.10210208]
[1641756802268,8.25,145.47,145.39,3.03219997]
[1641756802468,3.0,145.46,145.39,3.03219997]
[1641756803270,23.4479,145.49,145.39,3.03219997]
[1641756804172,34.3906,145.48,145.39,3.03219997]
[1641756804374,10.3175,145.44,145.39,3.03219997]
[1641756804971,10.3175,145.44,145.38,0.10176916]
[1641756806669,10.3161,145.46,145.38,0.10176916]
[1641756811876,1199.5,145.5,145.39,74.0]
[1641756812074,1199.5,145.5,145.4,3.3032497]
[1641756812276,1199.5,145.5,145.41,8.25]
[1641756812476,1199.5,145.5,145.42,3.0]
[1641756812675,1199.5,145.5,145.43,8.25]
[1641756813076,1198.5,145.5,145.43,8.25]
[1641756814376,1198.5,145.5,145.44,0.25]
[1641756814676,1198.5,145.5,145.41,8.25]
[1641756814879,1198.5,145.5,145.42,0.25]
[1641756815078,1198.5,145.5,145.42,1.968]
[1641756815678,1198.5,145.5,145.42,1.718]
[1641756815978,1198.5,145.5,145.39,1.718]
[1641756816278,1198.5,145.5,145.38,0.10176916]
[1641756816477,1206.75,145.5,145.38,0.10176916]
[1641756816883,1217.0648,145.5,145.38,0.10176916]
[1641756817483,1208.8148,145.5,145.38,0.10176916]
[1641756817680,1208.8148,145.5,145.39,1.718]
[1641756817884,1208.8148,145.5,145.4,0.25]
[1641756818080,1208.8148,145.5,145.4,3.25]
[1641756818679,1212.39934414,145.5,145.4,3.25]
[1641756818881,1212.39934414,145.5,145.4,3.0]
[1641756819480,1202.08454414,145.5,145.4,13.3137]
[1641756819782,1202.08454414,145.5,145.4,3.0]
[1641756820383,1202.08454414,145.5,145.38,0.10176916]
[1641756820581,1202.08454414,145.5,145.38,1.81976916]
[1641756820982,1220.64914414,145.5,145.38,0.10176916]
[1641756822589,3.0,145.49,145.38,0.10176916]
[1641756822787,10.3195,145.44,145.38,0.10176916]
[1641756823588,45.7824,145.47,145.38,0.10176916]
[1641756823790,10.318,145.45,145.38,0.10176916]
[1641756825221,8.25,145.44,145.38,0.10176916]
[1641756825419,10.3223,145.41,145.38,0.10176916]
[1641756825619,11.28219997,145.4,145.38,0.10176916]
[1641756825821,14.28219997,145.4,145.35,0.1]
[1641756826222,48.69839997,145.4,145.35,0.1]
[1641756827022,45.69839997,145.4,145.35,0.1]
[1641756827420,13.61219997,145.4,145.35,0.1]
[1641756828422,13.61219997,145.4,145.35,10.4172]
[1641756828622,3.76281687,145.45,145.37,22.86211581]
[1641756828822,3.76281687,145.48,145.37,31.11211581]
[1641756829023,3.76281687,145.48,145.38,3.0]
[1641756829424,3.76281687,145.48,145.39,8.25]
[1641756829825,1198.5,145.5,145.4,3.0]
[1641756830024,1198.5,145.5,145.38,3.0]
[1641756830223,8.25,145.49,145.35,0.1]
[1641756830626,8.25,145.49,145.35,8.35]
[1641756830826,42.6401,145.49,145.35,20.3861]
[1641756831628,1198.5,145.5,145.35,20.3861]
[1641756832025,10.3157,145.47,145.35,20.3861]
[1641756832930,10.3157,145.47,145.35,1.819]
[1641756833230,10.3157,145.47,145.35,0.1]
[1641756833425,18.5657,145.47,145.35,0.1]
[1641756834524,3.0,145.46,145.35,0.1]
[1641756834725,10.3202,145.41,145.35,0.1]
[1641756835328,8.25,145.4,145.35,0.1]
[1641756835528,3.0,145.39,145.35,0.1]
[1641756835926,10.3256,145.37,145.35,0.1]
[1641756836227,41.03219997,145.36,145.35,0.1]
[1641756836426,3.03219997,145.36,145.35,0.1]
[1641756837028,13.35729997,145.36,145.35,0.1]
[1641756837429,57.35729997,145.36,145.35,0.1]
[1641756837632,60.35729997,145.36,145.35,0.1]
[1641756837932,60.35729997,145.36,145.23,8.25]
[1641756837933,33.0,145.35,145.23,8.25]
[1641756838139,10.3279,145.3,145.23,8.25]
[1641756838533,34.4263,145.34,145.23,8.25]
[1641756839232,10.3268,145.32,145.23,18.5759]
[1641756839434,8.25,145.4,145.24,1.72]
[1641756839634,8.25,145.4,145.25,28.03504053]
[1641756839833,3.0,145.39,145.26,1.72]
[1641756840034,3.0,145.39,145.25,28.03504053]
[1641756841845,10.325,145.34,145.25,28.03504053]
[1641756842143,10.325,145.34,145.26,1.72]
[1641756842972,10.325,145.34,145.25,28.03504053]
[1641756845776,10.325,145.34,145.22,8.25]
[1641756846775,10.325,145.34,145.22,38.41336895]
[1641756849278,10.325,145.34,145.19,26.287]
[1641756849478,10.325,145.34,145.17,3.8832157]
[1641756849479,34.4348,145.3,145.17,3.8832157]
[1641756850280,34.4348,145.3,145.16,9.97]
[1641756850281,34.4348,145.3,145.18,31.49837463]
[1641756850484,34.4348,145.3,145.19,1.721]
[1641756850682,10.3314,145.25,145.18,31.49837463]
[1641756852080,10.3314,145.25,145.16,8.25]
[1641756853083,10.3314,145.25,145.17,27.68080602]
[1641756853282,10.3314,145.25,145.17,29.40180602]
[1641756854084,10.3314,145.25,145.17,1.721]
[1641756854684,10.3314,145.25,145.13,8.25]
[1641756854885,10.3314,145.25,145.14,3.0]
[1641756855085,10.3314,145.25,145.14,34.60449031]
[1641756855686,10.3314,145.25,145.11,93.4]
[1641756856088,3.0,145.24,145.11,93.4]
[1641756856495,34.4496,145.25,145.11,93.4]
[1641756856688,51.0099,145.26,145.11,93.4]
[1641756856689,16.2595,145.26,145.12,30.58586004]
[1641756856989,24.5095,145.26,145.12,30.58586004]
[1641756857289,3.0,145.26,145.13,9.971]
[1641756857590,37.443,145.28,145.14,10.4017]
[1641756857888,37.443,145.28,145.15,26.56933765]
[1641756858292,3.0,145.28,145.15,26.56933765]
[1641756858693,10.334,145.22,145.15,26.56933765]
[1641756858892,8.25,145.29,145.15,26.56933765]
[1641756859190,84.4595,145.33,145.16,3.0]
[1641756859390,8.25,145.33,145.17,0.07]
[1641756859590,13.3274,145.32,145.2,10.3276]
[1641756859791,13.3274,145.32,145.21,31.96012645]
[1641756859993,10.3274,145.32,145.21,31.96012645]
[1641756861292,10.3274,145.32,145.21,33.68012645]
[1641756861891,10.3274,145.32,145.21,31.96012645]
[1641756866193,10.3274,145.32,145.2,8.25]
[1641756866395,10.3274,145.32,145.18,1.72]
[1641756866396,10.3274,145.32,145.18,3.54261721]
[1641756866595,11.25,145.31,145.18,1.82261721]
[1641756866794,10.3331,145.25,145.18,1.82261721]
[1641756867295,10.3331,145.25,145.16,31.10203212]
[1641756868095,10.3331,145.25,145.21,0.02]
[1641756869296,10.3307,145.27,145.21,0.02]
[1641756869700,74.0,145.26,145.1,3.8832157]
[1641756869899,74.0,145.26,145.17,1.94420302]
[1641756869900,8.25,145.25,145.17,1.94420302]
[1641756870101,11.25,145.25,145.17,1.94420302]
[1641756870304,34.4632,145.2,145.17,3.02e-06]
[1641756870501,3.0,145.19,145.17,3.02e-06]
[1641756870703,6.03219997,145.19,145.08,28.36503419]
[1641756871302,10.3384,145.15,145.04,88.6864]
[1641756871504,10.3384,145.15,145.04,86.9654]
[1641756871700,10.3384,145.15,145.03,10.3395]
[1641756872301,10.3384,145.15,145.04,27.27799591]
[1641756872503,10.3384,145.15,145.04,37.61729591]
[1641756872703,10.3384,145.15,145.04,27.27799591]
[1641756872907,10.3384,145.15,145.05,1.722]
[1641756876206,10.3384,145.15,145.04,27.27799591]
[1641756877135,10.3384,145.15,145.05,1.722]
[1641756877336,10.3384,145.15,145.05,4.722]
[1641756877736,8.25,145.2,145.05,4.722]
[1641756877936,8.25,145.22,145.1,10.3349]
[1641756878137,126.31668052,145.24,145.05,4.722]
[1641756878334,3.58818052,145.24,145.13,31.52592071]
[1641756878534,166.77517724,145.28,145.14,1.721]
[1641756878734,135.62337724,145.28,145.14,1.721]
[1641756878936,135.62337724,145.28,145.15,0.25]
[1641756879134,135.62337724,145.28,145.17,31.78287528]
[1641756879135,10.3314,145.25,145.17,31.78287528]
[1641756879337,10.3314,145.25,145.18,0.25]
[1641756879536,10.3314,145.25,145.17,31.78287528]
[1641756879738,10.3314,145.25,145.18,0.25]
[1641756880035,10.3314,145.25,145.14,12.0528]
[1641756880234,10.3314,145.25,145.11,0.14763584]
[1641756880834,53.722,145.24,145.09,1.722]
[1641756881038,10.3351,145.19,145.1,30.58214096]
[1641756881236,34.4503,145.23,145.1,40.91654096]
[1641756881535,1.722,145.25,145.11,8.25]
[1641756881735,79.9946,145.3,145.13,31.04294275]
[1641756881935,86.5226,145.3,145.14,10.231]
[1641756882238,86.5226,145.3,145.15,10.3309]
[1641756882239,10.3302,145.26,145.15,10.3309]
[1641756882436,10.3302,145.26,145.17,31.29542909]
[1641756882636,3.58884332,145.29,145.17,31.29542909]
[1641756882836,9.971,145.36,145.18,13.79984204]
[1641756883038,10.3279,145.29,145.18,13.53984204]
[1641756883238,9.971,145.36,145.18,13.221]
[1641756883635,22.91096476,145.36,145.18,10.221]
[1641756883835,3.58713964,145.35,145.18,10.221]
[1641756884037,9.97,145.34,145.18,10.221]
[1641756884243,10.3286,145.29,145.18,10.221]
[1641756885945,10.3328,145.23,145.18,8.25]
[1641756886549,10.3328,145.23,145.13,1.721]
[1641756887245,10.3301,145.27,145.14,8.25]
[1641756887448,10.3301,145.27,145.15,1.721]
[1641756887647,10.3301,145.27,145.15,1.971]
[1641756889149,10.3322,145.24,145.15,1.971]
[1641756890152,10.3322,145.24,145.15,1.99484981]
[1641756890755,10.3322,145.24,145.15,2.01876025]
[1641756891354,10.3306,145.26,145.22,0.3092539]
[1641756891554,1.721,145.33,145.22,0.3092539]
[1641756891754,1.72,145.34,145.22,0.3092539]
[1641756891955,9.97,145.34,145.2,31.84408934]
[1641756892156,9.97,145.34,145.2,30.12408934]
[1641756892355,3.0,145.33,145.2,30.19408934]
[1641756892559,1.72,145.32,145.2,30.19408934]
[1641756892958,3.0,145.31,145.2,29.94408934]
[1641756893159,3.0,145.31,145.2,31.66508934]
[1641756893358,3.0,145.31,145.2,29.94408934]
[1641756893558,10.3309,145.26,145.2,29.94408934]
[1641756893758,34.4321,145.31,145.2,29.94408934]
[1641756894359,34.4321,145.31,145.22,0.02383831]
[1641756894559,10.3302,145.27,145.22,0.05181764]
[1641756894958,10.3302,145.27,145.22,0.07571655]
[1641756895587,10.329,145.29,145.22,0.05187824]
[1641756896190,10.329,145.29,145.22,0.02797933]
[1641756896488,10.329,145.29,145.22,0.05181764]
[1641756896687,10.3279,145.31,145.22,0.05181764]
[1641756897089,10.3279,145.31,145.22,0.07571655]
[1641756897289,1.72,145.34,145.22,0.07571655]
[1641756897491,3.58713964,145.35,145.23,1.72]
[1641756897692,3.58713964,145.35,145.24,24.48555758]
[1641756897891,9.97,145.38,145.25,12.0443]
[1641756898090,154.3676,145.4,145.26,8.25]
[1641756898291,76.615,145.4,145.28,26.34231299]
[1641756898490,1.72,145.43,145.3,0.07]
[1641756898691,8.25,145.44,145.31,1.719]
[1641756898891,10.3192,145.43,145.32,23.86751089]
[1641756899490,10.3192,145.43,145.32,23.61751089]
[1641756900091,12.0382,145.43,145.31,1.719]
[1641756900692,20.2882,145.43,145.31,1.719]
[1641756900892,10.3232,145.37,145.31,1.719]
[1641756901193,10.3232,145.37,145.27,38.06748558]
[1641756902493,10.3232,145.37,145.28,0.25]
[1641756903794,10.3232,145.37,145.28,0.27388904]
[1641756904394,10.3232,145.37,145.28,0.02388904]
[1641756904594,10.3232,145.37,145.28,0.05186837]
[1641756904796,10.3263,145.32,145.28,0.05186837]
[1641756904993,10.3263,145.32,145.28,0.0718078]
[1641756905596,10.3263,145.32,145.28,0.11973456]
[1641756905895,10.3263,145.32,145.28,0.1436236]
[1641756906094,10.3263,145.32,145.28,0.11979513]
[1641756906495,10.3252,145.34,145.28,0.11979513]
[1641756906899,0.25,145.33,145.28,0.11973456]
[1641756907300,0.25,145.35,145.28,0.11973456]
[1641756907503,10.326,145.32,145.28,0.11973456]
[1641756907903,10.326,145.32,145.28,0.11979513]
[1641756908105,3.0,145.31,145.28,0.11979513]
[1641756908302,4.75219997,145.3,145.28,0.11979513]
[1641756908901,3.03219997,145.3,145.28,0.11973456]
[1641756909302,10.33,145.29,145.28,0.11973456]
[1641756909904,3.03219997,145.3,145.28,0.1436236]
[1641756910106,3.03219997,145.3,145.28,0.11979513]
[1641756910306,13.35989997,145.3,145.28,0.11979513]
[1641756910907,13.35989997,145.3,145.28,0.1436236]
[1641756911107,13.35989997,145.3,145.28,0.11973456]
[1641756912008,13.35989997,145.3,145.28,0.11979513]
[1641756913009,13.35989997,145.3,145.28,0.1436236]
[1641756913207,13.35989997,145.3,145.28,0.11973456]
[1641756914010,13.35989997,145.3,145.28,0.11979513]
[1641756914209,13.35989997,145.3,145.17,9.97]
[1641756914413,4.721,145.29,145.17,1.72]
[1641756914611,10.3327,145.23,145.17,1.72]
[1641756915013,10.3327,145.23,145.17,24.39396214]
[1641756915415,10.3327,145.23,145.17,1.72]
[1641756915617,10.3327,145.23,145.12,8.25]
[1641756915815,10.3327,145.23,145.11,3.8832157]
[1641756916416,10.3327,145.23,145.12,25.72388312]
[1641756916616,10.3327,145.23,145.12,36.05748312]
[1641756917015,10.3327,145.23,145.13,0.25]
[1641756917415,10.3327,145.23,145.12,25.72388312]
[1641756917816,3.0,145.22,145.12,25.72388312]
[1641756918021,10.3348,145.2,145.12,25.72388312]
[1641756919017,10.3348,145.2,145.13,0.25]
[1641756919417,10.3348,145.2,145.09,12.0574]
[1641756919618,10.3348,145.2,145.07,3.8832157]
[1641756920217,0.25,145.19,145.06,9.972]
[1641756920421,10.3362,145.18,145.12,0.02818357]
[1641756920617,0.25,145.19,145.12,0.02818357]
[1641756920819,24.6555,145.21,145.12,0.02818357]
[1641756921018,1.722,145.24,145.12,0.27818357]
[1641756921221,109.661,145.25,145.13,1.722]
[1641756921418,10.3316,145.24,145.14,31.8259924]
[1641756921645,22.7814,145.25,145.17,10.3299]
[1641756921856,1.722,145.27,145.18,23.50923823]
[1641756922056,74.9479,145.3,145.19,3.0]
[1641756922252,53.45711687,145.34,145.2,1.721]
[1641756922450,53.45711687,145.34,145.21,24.92759165]
[1641756922851,84.1172,145.34,145.22,10.3265]
[1641756923355,10.3264,145.31,145.22,10.3265]
[1641756924351,5.3264,145.31,145.22,10.3265]
[1641756926454,5.3264,145.31,145.21,24.92759165]
[1641756926861,0.25,145.3,145.21,24.92759165]
[1641756927055,10.5775,145.3,145.21,24.92759165]
[1641756927660,10.3275,145.3,145.21,24.92759165]
[1641756928057,10.3275,145.3,145.2,10.3275]
[1641756928363,10.3275,145.3,145.21,0.25]
[1641756928559,10.3275,145.3,145.18,10.3288]
[1641756928758,1.721,145.29,145.17,0.04430116]
[1641756928958,9.971,145.29,145.17,0.04430116]
[1641756929360,3.0,145.28,145.17,0.04430116]
[1641756929559,9.971,145.27,145.22,0.02383831]
[1641756930161,10.3346,145.25,145.22,0.02383831]
[1641756930366,47.45029997,145.24,145.22,0.02383831]
[1641756930564,45.72929997,145.24,145.22,0.04813111]
[1641756930763,45.72929997,145.24,145.22,0.07629527]
[1641756930967,45.72929997,145.24,145.22,0.05245696]
[1641756931166,10.3342,145.23,145.22,0.05245696]
[1641756931569,10.3342,145.23,145.22,0.05200247]
[1641756931767,10.3342,145.23,145.22,0.02383831]
[1641756932369,43.3342,145.23,145.22,0.02383831]
[1641756932569,43.5842,145.23,145.22,0.0242928]
[1641756932767,43.5842,145.23,145.22,0.05245696]
[1641756932968,45.3052,145.23,145.22,0.05245696]
[1641756933669,12.3052,145.23,145.22,0.05200247]
[1641756933871,12.3052,145.23,145.22,0.02383831]
[1641756934070,10.3342,145.23,145.22,0.02383831]
[1641756934675,10.3342,145.23,145.22,0.0242928]
[1641756935372,10.3342,145.23,145.22,0.05245696]
[1641756935573,10.3342,145.23,145.22,0.07629527]
[1641756935776,10.3342,145.23,145.22,0.05200247]
[1641756936575,10.3342,145.23,145.22,0.04813111]
[1641756936776,10.3342,145.23,145.22,0.0242928]
[1641756937575,10.3342,145.23,145.22,0.05245696]
[1641756937774,10.3342,145.23,145.22,0.05200247]
[1641756938577,10.3342,145.23,145.22,0.02383831]
[1641756938775,9.8342,145.23,145.22,0.0242928]
[1641756939580,9.8342,145.23,145.22,0.05245696]
[1641756939780,9.8342,145.23,145.22,0.07629527]
[1641756939982,9.8342,145.23,145.22,0.05200247]
[1641756940703,9.8342,145.23,145.22,0.02383831]
[1641756940906,9.8342,145.23,145.22,0.0242928]
[1641756941507,10.0842,145.23,145.22,0.0242928]
[1641756941710,9.8342,145.23,145.22,0.0242928]
[1641756941910,3.03219997,145.24,145.22,0.02383831]
[1641756942911,3.03219997,145.24,145.22,0.0242928]
[1641756943913,13.36379997,145.24,145.14,34.54674994]
[1641756944144,13.36379997,145.24,145.14,44.87904994]
[1641756944515,13.36379997,145.24,145.15,0.25]
[1641756945116,13.36379997,145.24,145.14,26.34489444]
[1641756945317,13.36379997,145.24,145.15,0.25]
[1641756946419,3.03219997,145.24,145.17,30.45708893]
[1641756946619,49.2713,145.28,145.17,30.45708893]
[1641756946823,49.2713,145.28,145.18,10.3291]
[1641756947025,74.6043,145.29,145.18,10.5791]
[1641756947422,74.6043,145.29,145.18,12.35992586]
[1641756947822,74.6043,145.29,145.18,20.60992586]
[1641756947823,10.3295,145.27,145.18,20.60992586]
[1641756948222,1.721,145.31,145.18,20.60992586]
[1641756948426,90.6229,145.32,145.2,30.26479463]
[1641756948625,90.6229,145.32,145.21,1.721]
[1641756948827,90.6229,145.32,145.21,0.25]
[1641756949026,47.9434,145.32,145.19,1.72]
[1641756949226,46.0728,145.31,145.18,2.03082586]
[1641756949626,0.25,145.3,145.18,1.78082586]
[1641756949826,1.721,145.29,145.18,1.80512535]
[1641756950025,1.721,145.29,145.19,26.465685]
[1641756950227,10.33,145.26,145.19,26.465685]
[1641756954857,12.0501,145.28,145.19,26.465685]
[1641756955057,10.3291,145.28,145.19,26.465685]
[1641756955457,10.3291,145.28,145.19,26.48952824]
[1641756955863,10.3291,145.28,145.19,26.53770016]
[1641756956458,11.641,145.29,145.2,0.25]
[1641756956459,1.721,145.29,145.2,0.25]
[1641756956661,10.3276,145.3,145.2,1.971]
[1641756957261,10.3276,145.3,145.2,1.721]
[1641756957459,20.2476,145.3,145.2,1.721]
[1641756957664,1.721,145.29,145.19,26.60770016]
[1641756957867,10.3318,145.24,145.19,26.60770016]
[1641756960362,10.3318,145.24,145.19,0.14201516]
[1641756962165,10.3318,145.24,145.19,0.07201516]
[1641756962968,10.5824,145.23,145.19,0.07201516]
[1641756963170,10.3324,145.23,145.19,0.07201516]
[1641756963369,0.25,145.22,145.19,0.07201516]
[1641756963568,3.03219997,145.21,145.19,0.07201516]
[1641756964170,13.36589997,145.21,145.19,0.07201516]
[1641756965968,10.5848,145.2,145.19,0.07201516]
[1641756967370,12.3058,145.2,145.19,0.07201516]
[1641756967569,56.3058,145.2,145.19,1e-08]
[1641756967768,69.2258,145.2,145.19,1e-08]
[1641756968770,69.2258,145.2,145.06,3.8832157]
[1641756968972,63.0,145.19,145.04,19.1419157]
[1641756969171,1.722,145.18,145.05,3.0]
[1641756969378,10.3396,145.13,145.05,9.92]
[1641756969574,10.3396,145.13,145.06,24.09673974]
[1641756970572,10.3396,145.13,145.05,11.70082586]
[1641756970975,0.25,145.12,145.05,9.92]
[1641756971173,10.3409,145.11,145.05,9.92]
[1641756971372,0.25,145.1,145.05,9.92]
[1641756971573,10.3409,145.11,145.05,9.92]
[1641756972777,10.3409,145.11,145.03,24.39252987]
[1641756973378,10.3409,145.11,145.03,22.61170401]
[1641756973877,10.3409,145.11,145.01,11.70082586]
[1641756975078,10.3409,145.11,144.99,30.34486674]
[1641756975278,1.723,145.1,145.0,3.0]
[1641756975479,10.3446,145.07,145.0,3.0]
[1641756976881,0.25,145.06,145.0,3.0]
[1641756978415,36.2061,145.11,145.0,3.0]
[1641756978615,0.25,145.08,145.0,3.0]
[1641756978815,3.0,145.1,145.01,0.25]
[1641756979018,32.7546,145.12,145.0,4.723]
[1641756979215,32.7546,145.12,145.0,3.0]
[1641756979415,3.0,145.11,145.01,0.25]
[1641756979616,3.0,145.11,145.0,3.0]
[1641756980018,3.0,145.11,145.01,0.25]
[1641756980817,32.7546,145.12,145.01,0.25]
[1641756981621,32.7546,145.12,145.0,4.78082586]
[1641756981920,36.2043,145.11,145.0,3.0]
[1641756982118,39.2043,145.11,145.0,3.0]
[1641756982818,39.2043,145.11,144.95,1.78082586]
[1641756982819,10.3453,145.06,144.95,1.78082586]
[1641756983019,4.724,145.05,144.96,3.0]
[1641756983618,4.724,145.05,144.96,33.93482519]
[1641756983819,10.3482,145.02,144.96,30.93482519]
[1641756984220,0.25,145.01,144.96,30.93482519]
[1641756985022,10.5989,145.01,144.96,30.93482519]
[1641756985623,10.5989,145.01,144.9,13.42482586]
[1641756986023,10.5989,145.01,144.9,11.644]
[1641756986222,10.5989,145.01,144.9,21.9934]
[1641756986422,10.3481,145.03,144.9,21.9934]
[1641756986622,22.8681,145.04,144.91,30.30581284]
[1641756986829,22.8681,145.04,144.92,11.644]
[1641756987122,22.8681,145.04,144.94,31.59319541]
[1641756988023,0.25,145.03,144.94,31.59319541]
[1641756989025,0.25,145.03,144.93,3.0]
[1641756989223,4.974,145.03,144.91,6.63772271]
[1641756989824,15.0715,145.03,144.91,6.63772271]
[1641756990025,4.724,145.03,144.92,23.22035826]
[1641756990226,3.0,145.03,144.92,23.22035826]
[1641756990626,3.0,145.03,144.93,1.78082586]
[1641756991027,13.3475,145.03,144.94,0.25]
[1641756991226,22.8681,145.04,144.94,0.25]
[1641756991527,33.745,145.07,144.95,24.77277082]
[1641756991727,23.825,145.07,144.95,24.77277082]
[1641756991928,100.6875,145.08,144.96,5.03082586]
[1641756992128,77.3965,145.08,144.96,15.21082586]
[1641756992328,77.3965,145.08,144.97,1.78082586]